bitfinex/quotes_BTCUSD_20241025
["timestamp","ask_amount","ask_price","bid_price","bid_amount"]
[1729879729804,0.22600232,66195.0,66185.0,0.01505038]
[1729879730002,0.302146,66193.0,66185.0,0.01505038]
[1729879730263,0.151076,66192.0,66185.0,0.01505038]
[1729879730476,0.00257911,66200.0,66185.0,0.01505038]
[1729879730688,0.151075,66192.0,66191.0,0.05]
[1729879731186,0.00257911,66188.0,66169.0,0.000822]
[1729879731405,0.00257911,66182.0,66177.0,0.22600232]
[1729879731619,0.23100232,66202.0,66170.0,0.15050381]
[1729879731620,0.00257911,66178.0,66170.0,0.15050381]
[1729879732042,0.00257911,66178.0,66171.0,0.1]
[1729879732252,0.00257911,66177.0,66169.0,0.100822]
[1729879732738,0.00257911,66176.0,66169.0,0.100822]
[1729879732963,0.10308292,66176.0,66169.0,0.000822]
[1729879733410,0.302242,66172.0,66168.0,0.26391187]
[1729879733637,0.151128,66169.0,66168.0,0.26391187]
[1729879733867,0.30163181,66169.0,66168.0,0.26391187]
[1729879734130,0.30163181,66169.0,66166.0,1.26411187]
[1729879734131,0.15050381,66169.0,66166.0,1.26411187]
[1729879734335,0.52763813,66167.0,66166.0,1.24114838]
[1729879734551,0.30163581,66167.0,66166.0,1.24114838]
[1729879734985,0.70163581,66167.0,66166.0,1.24114838]
[1729879735252,0.4,66167.0,66166.0,1.24114838]
[1729879735464,0.4,66167.0,66166.0,1.36541773]
[1729879735944,0.4,66167.0,66166.0,1.24114838]
[1729879736426,0.15050381,66167.0,66166.0,1.29114838]
[1729879736693,0.30163581,66167.0,66166.0,1.29114838]
[1729879736921,0.02364497,66169.0,66166.0,1.29114838]
[1729879737165,0.37650613,66168.0,66166.0,1.29114838]
[1729879737413,0.37713432,66167.0,66166.0,1.29114838]
[1729879737658,0.30163581,66167.0,66166.0,1.29114838]
[1729879738382,0.29163581,66167.0,66166.0,1.29114838]
[1729879738921,0.69221499,66167.0,66166.0,1.29114838]
[1729879738937,0.70567755,66167.0,66166.0,1.29114838]
[1729879739205,2.70567755,66167.0,66166.0,1.29114838]
[1729879739613,2.56454555,66167.0,66166.0,1.29114838]
[1729879740038,2.55108299,66167.0,66166.0,1.29114838]
[1729879740466,2.70221499,66167.0,66166.0,1.29114838]
[1729879740672,2.71565147,66167.0,66166.0,1.29114838]
[1729879741089,3.11565147,66167.0,66166.0,1.29114838]
[1729879742391,3.11564183,66167.0,66166.0,1.29114838]
[1729879742663,1.12064183,66167.0,66166.0,0.50759961]
[1729879742873,1.12064183,66167.0,66166.0,0.49204055]
[1729879743071,1.11564183,66167.0,66166.0,0.49204055]
[1729879743291,0.96450983,66167.0,66166.0,0.49204055]
[1729879743520,1.11564183,66167.0,66166.0,0.49204055]
[1729879743731,1.11564183,66167.0,66166.0,0.43803649]
[1729879743732,1.27029561,66167.0,66166.0,0.43803649]
[1729879744024,1.54029561,66167.0,66166.0,0.15355215]
[1729879744236,0.416144,66162.0,66159.0,0.00147504]
[1729879744459,0.15116,66155.0,66150.0,0.01638]
[1729879744659,0.70224299,66155.0,66150.0,0.01638]
[1729879744871,0.151169,66151.0,66150.0,0.01638]
[1729879745086,0.151171,66150.0,66149.0,0.0177257]
[1729879745346,0.151171,66150.0,66123.0,0.00051969]
[1729879745347,0.55108299,66150.0,66123.0,0.00051969]
[1729879745561,0.307338,66151.0,66135.0,0.22600232]
[1729879745562,0.15050381,66148.0,66135.0,0.22600232]
[1729879745796,0.15050381,66148.0,66123.0,0.00051969]
[1729879745797,0.151187,66144.0,66123.0,0.00051969]
[1729879746007,0.40057918,66134.0,66123.0,0.00051969]
[1729879746219,0.55108299,66134.0,66123.0,0.00051969]
[1729879747071,0.85349899,66134.0,66123.0,0.00051969]
[1729879747298,0.151217,66130.0,66123.0,0.00051969]
[1729879747536,0.40057918,66124.0,66123.0,0.00051969]
[1729879748131,0.55108299,66124.0,66123.0,0.00051969]
[1729879748585,0.40057918,66124.0,66123.0,0.00051969]
[1729879750163,0.44487842,66124.0,66111.0,0.96730524]
[1729879750435,0.04429924,66123.0,66112.0,0.47323665]
[1729879750653,0.40057918,66124.0,66113.0,0.17812447]
[1729879750654,0.04429924,66122.0,66113.0,0.17812447]
[1729879750902,1.89062499,66134.0,66131.0,0.005]
[1729879751128,1.89062499,66134.0,66133.0,0.51557918]
[1729879751129,1.69921874,66134.0,66133.0,0.51557918]
[1729879751368,0.27364497,66169.0,66154.0,0.005]
[1729879751369,0.02233716,66165.0,66154.0,0.005]
[1729879751659,0.02364497,66169.0,66168.0,0.035]
[1729879751872,0.16162517,66177.0,66176.0,0.189112]
[1729879752121,0.02233716,66189.0,66188.0,0.038]
[1729879752122,0.00571278,66189.0,66188.0,0.038]
[1729879752386,0.22600232,66195.0,66188.0,0.038]
[1729879752387,0.22600232,66195.0,66194.0,0.038]
[1729879752632,0.6265815,66195.0,66176.0,0.01067736]
[1729879752842,0.40057918,66184.0,66183.0,0.22600232]
[1729879753099,0.40057918,66185.0,66171.0,0.1]
[1729879753340,0.40057918,66178.0,66170.0,0.22600232]
[1729879753595,0.40057918,66178.0,66161.0,0.11558058]
[1729879753596,0.0782,66186.0,66172.0,0.22600232]
[1729879753845,0.0782,66186.0,66164.0,0.22600232]
[1729879753846,0.37650613,66185.0,66164.0,0.22600232]
[1729879754084,0.0782,66186.0,66164.0,0.22600232]
[1729879754085,0.0782,66186.0,66173.0,0.22600232]
[1729879754333,0.22600232,66184.0,66174.0,0.02260023]
[1729879754588,0.4449,66200.0,66175.0,0.1]
[1729879754589,0.22600232,66195.0,66175.0,0.1]
[1729879754832,0.22600232,66195.0,66176.0,0.15050381]
[1729879754833,0.22600232,66185.0,66176.0,0.15050381]
[1729879755085,0.22600232,66195.0,66175.0,0.1]
[1729879755086,0.40057918,66187.0,66175.0,0.1]
[1729879755818,0.15050381,66195.0,66186.0,0.22600232]
[1729879756058,0.15050381,66195.0,66172.0,0.1]
[1729879756059,0.22600232,66187.0,66176.0,0.15050381]
[1729879756305,0.22600232,66194.0,66178.0,0.22600232]
[1729879756306,0.40057918,66193.0,66178.0,0.22600232]
[1729879756559,0.22600232,66187.0,66177.0,0.02505038]
[1729879756773,0.22600232,66194.0,66177.0,0.02505038]
[1729879756774,0.40057918,66186.0,66177.0,0.2510527]
[1729879757022,0.40057918,66186.0,66177.0,0.02505038]
[1729879757267,0.40057918,66179.0,66168.0,0.1]
[1729879757507,0.40057918,66179.0,66167.0,0.22600232]
[1729879758210,0.55108299,66185.0,66167.0,0.22600232]
[1729879758442,0.40057918,66185.0,66167.0,0.37650613]
[1729879758674,0.40057918,66185.0,66168.0,0.03773281]
[1729879758890,0.22600232,66187.0,66168.0,0.03773281]
[1729879758891,0.22600232,66187.0,66168.0,0.18823662]
[1729879759141,0.02363371,66189.0,66178.0,0.22600232]
[1729879759422,0.02363371,66189.0,66170.0,0.023]
[1729879759423,0.22600232,66186.0,66170.0,0.023]
[1729879759650,0.02363371,66189.0,66175.0,0.1]
[1729879759894,0.22600232,66187.0,66176.0,0.19815442]
[1729879760129,0.02363371,66189.0,66176.0,0.19815442]
[1729879760595,0.02345187,66189.0,66176.0,0.19815442]
[1729879761278,0.02345187,66189.0,66181.0,0.22600232]
[1729879761531,0.02345187,66189.0,66177.0,0.00302128]
[1729879761532,0.22600232,66185.0,66176.0,0.04765061]
[1729879761779,0.40057918,66184.0,66167.0,0.22600232]
[1729879762289,0.40057918,66184.0,66152.0,0.22600232]
[1729879762290,0.40057918,66168.0,66152.0,0.22600232]
[1729879762294,0.40057918,66168.0,66162.0,0.22600232]
[1729879762295,0.347432,66167.0,66162.0,0.22600232]
[1729879762540,0.307279,66165.0,66162.0,0.22600232]
[1729879762767,0.55172018,66163.0,66162.0,0.22600232]
[1729879763014,0.25,66159.0,66145.0,0.22600232]
[1729879763239,0.55175918,66146.0,66145.0,0.22600232]
[1729879763479,0.0823,66150.0,66146.0,0.04974946]
[1729879763725,0.151175,66149.0,66138.0,0.22600232]
[1729879763947,0.0823,66150.0,66138.0,0.22600232]
[1729879764442,0.302366,66145.0,66139.0,0.02260023]
[1729879764795,0.40057918,66140.0,66124.0,0.22600232]
[1729879764991,0.302393,66139.0,66131.0,0.22600232]
[1729879765206,0.55108299,66140.0,66132.0,0.02260023]
[1729879765415,0.70227799,66140.0,66132.0,0.02260023]
[1729879765841,0.70227799,66140.0,66124.0,0.22600232]
[1729879765842,0.15050381,66139.0,66124.0,0.22600232]
[1729879766088,0.15050381,66139.0,66111.0,0.96730524]
[1729879766089,0.40057918,66134.0,66127.0,0.22600232]
[1729879766287,0.151204,66136.0,66127.0,0.22600232]
[1729879766496,0.15050381,66136.0,66128.0,0.02260023]
[1729879766710,0.22600232,66138.0,66128.0,0.02562448]
[1729879766938,0.16394277,66137.0,66119.0,0.22600232]
[1729879767179,0.151216,66131.0,66119.0,0.22600232]
[1729879767409,0.302411,66135.0,66119.0,0.22600232]
[1729879767410,0.151212,66133.0,66119.0,0.22600232]
[1729879767622,0.15050381,66133.0,66120.0,0.02562462]
[1729879768074,0.15050381,66133.0,66121.0,0.00302439]
[1729879768498,0.302384,66141.0,66129.0,0.22600232]
[1729879768733,0.22600232,66137.0,66120.0,0.02260023]
[1729879768946,0.45289281,66140.0,66121.0,0.25086258]
[1729879769192,0.22600232,66137.0,66121.0,0.25086258]
[1729879769434,0.37650613,66137.0,66121.0,0.02486026]
[1729879769645,0.151221,66128.0,66127.0,0.000821]
[1729879769956,0.151217,66130.0,66127.0,0.000821]
[1729879770160,0.37650613,66137.0,66127.0,0.000821]
[1729879770378,0.151221,66128.0,66127.0,0.000821]
[1729879770609,0.151221,66128.0,66112.0,0.22600232]
[1729879770610,0.40057918,66123.0,66112.0,0.22600232]
[1729879770852,0.40057918,66123.0,66119.0,0.22600232]
[1729879770853,0.15124,66120.0,66119.0,0.22600232]
[1729879771167,0.15050381,66122.0,66113.0,0.11933076]
[1729879771279,0.25,66134.0,66113.0,0.11933076]
[1729879771526,0.80057918,66135.0,66113.0,0.11933076]
[1729879771527,0.22600232,66123.0,66113.0,0.11933076]
[1729879771765,0.30173781,66123.0,66113.0,0.11933076]
[1729879771988,0.40057918,66115.0,66111.0,0.96730524]
[1729879772220,0.40057918,66115.0,66112.0,0.22600232]
[1729879772435,0.40057918,66121.0,66111.0,0.96730524]
[1729879772664,0.22600232,66120.0,66111.0,0.96730524]
[1729879772901,0.0798,66124.0,66112.0,0.00302493]
[1729879773144,0.65057918,66127.0,66112.0,0.00302493]
[1729879773145,0.37650613,66123.0,66113.0,0.09703302]
[1729879773391,0.40057918,66134.0,66114.0,0.00302472]
[1729879773622,0.22600232,66130.0,66115.0,0.1]
[1729879773851,0.22600232,66130.0,66117.0,0.1]
[1729879774078,0.22600232,66130.0,66118.0,0.15050381]
[1729879774292,0.22600232,66130.0,66119.0,0.1]
[1729879774518,0.22600232,66130.0,66119.0,0.25050381]
[1729879774737,0.40057918,66125.0,66116.0,0.13897017]
[1729879774976,0.40057918,66131.0,66117.0,0.11439702]
[1729879775207,0.22600232,66128.0,66117.0,0.11439702]
[1729879775448,0.40057918,66125.0,66117.0,0.01439702]
[1729879775667,0.40057918,66118.0,66106.0,0.00134276]
[1729879775883,0.40057918,66118.0,66112.0,0.22600232]
[1729879776100,0.55108299,66124.0,66106.0,0.00134276]
[1729879776320,0.55108299,66124.0,66112.0,0.09975536]
[1729879776321,0.40057918,66118.0,66112.0,0.09975536]
[1729879776540,0.40057918,66118.0,66112.0,0.09673052]
[1729879776763,0.22600232,66113.0,66106.0,0.00134276]
[1729879776998,0.40057918,66112.0,66106.0,0.00134276]
[1729879777698,0.40057918,66118.0,66106.0,0.00134276]
[1729879777946,0.40057918,66112.0,66106.0,0.00134276]
[1729879778183,0.40057918,66112.0,66111.0,1.06417004]
[1729879778863,0.40057918,66118.0,66111.0,1.06417004]
[1729879779099,0.0769,66129.0,66111.0,1.06417004]
[1729879779100,0.40057918,66124.0,66112.0,0.00302486]
[1729879779318,0.22600232,66121.0,66113.0,0.20671949]
[1729879779546,0.22600232,66121.0,66115.0,0.1]
[1729879779750,0.22600232,66128.0,66117.0,0.1]
[1729879779965,0.22600232,66128.0,66118.0,0.15050381]
[1729879780176,0.22600232,66128.0,66119.0,0.12505038]
[1729879780387,0.22600232,66128.0,66119.0,0.27555419]
[1729879781542,0.22600232,66137.0,66119.0,0.02505038]
[1729879781543,0.40057918,66125.0,66119.0,0.02505038]
[1729879781768,0.40057918,66125.0,66111.0,0.96730524]
[1729879781769,0.22600232,66123.0,66111.0,0.96730524]
[1729879781977,0.40057918,66115.0,66111.0,0.96730524]
[1729879782658,0.1809,66122.0,66111.0,0.96730524]
[1729879782659,0.22600232,66120.0,66111.0,0.96730524]
[1729879782869,0.01339515,66119.0,66112.0,0.09673052]
[1729879783293,0.53008432,66130.0,66113.0,0.15352874]
[1729879783294,0.01339515,66120.0,66113.0,0.15352874]
[1729879783500,0.22600232,66128.0,66113.0,0.15050381]
[1729879783719,0.22600232,66121.0,66114.0,0.12145396]
[1729879783976,0.22600232,66128.0,66115.0,0.15050381]
[1729879784195,0.22600232,66128.0,66116.0,0.1]
[1729879784405,0.22600232,66128.0,66117.0,0.15050381]
[1729879785695,0.22600232,66128.0,66114.0,0.12145396]
[1729879785930,0.6265815,66121.0,66115.0,0.10887592]
[1729879786162,0.40057918,66121.0,66115.0,0.10887592]
[1729879786599,0.01342415,66120.0,66115.0,0.10887592]
[1729879786817,0.01342415,66120.0,66111.0,0.96730524]
[1729879787043,0.151252,66115.0,66111.0,0.96730524]
[1729879787265,0.01342415,66114.0,66112.0,0.22600232]
[1729879787475,0.94247865,66122.0,66113.0,0.11933076]
[1729879787696,0.22600232,66115.0,66113.0,0.11933076]
[1729879787932,0.23942647,66114.0,66111.0,0.96730524]
[1729879788153,0.151258,66112.0,66111.0,0.96230524]
[1729879788362,0.01344306,66112.0,66111.0,0.96230524]
[1729879788572,0.01344306,66112.0,66111.0,1.05867004]
[1729879788777,0.40057918,66115.0,66111.0,1.05867004]
[1729879789253,0.401249,66116.0,66111.0,1.05867004]
[1729879789665,0.01345922,66115.0,66111.0,1.05867004]
[1729879789875,0.4140384,66115.0,66112.0,0.105867]
[1729879790075,0.01345922,66114.0,66112.0,0.105867]
[1729879790283,0.01345922,66115.0,66112.0,0.105867]
[1729879790951,0.01145922,66115.0,66112.0,0.105867]
[1729879791171,0.01145922,66115.0,66113.0,0.10681722]
[1729879792238,0.01145922,66115.0,66113.0,0.07273837]
[1729879792458,0.01145922,66115.0,66113.0,0.07576327]
[1729879792666,0.01145922,66115.0,66114.0,0.15050381]
[1729879792871,0.06461579,66127.0,66114.0,0.15050381]
[1729879793322,0.22600232,66120.0,66115.0,0.11885723]
[1729879793326,0.0533779,66127.0,66126.0,0.23100232]
[1729879793533,0.04297305,66127.0,66125.0,0.005]
[1729879794434,0.04297305,66127.0,66120.0,0.023]
[1729879794435,0.04297305,66127.0,66126.0,0.15050381]
[1729879794654,0.04297305,66127.0,66126.0,0.26605419]
[1729879794874,0.001644,66128.0,66127.0,0.1]
[1729879795087,0.001644,66128.0,66126.0,0.01555038]
[1729879795308,0.25,66126.0,66112.0,0.22600232]
[1729879795528,0.40057918,66125.0,66112.0,0.32231504]
[1729879795768,0.04494419,66124.0,66112.0,0.32231504]
[1729879796249,0.25,66126.0,66112.0,0.32231504]
[1729879796250,0.22600232,66113.0,66112.0,0.09631272]
[1729879796493,0.59613712,66113.0,66111.0,0.96312724]
[1729879796748,0.22600232,66120.0,66106.0,0.00134276]
[1729879796749,0.65057918,66107.0,66106.0,0.00134276]
[1729879796979,0.65057918,66099.0,66098.0,0.21411743]
[1729879797216,0.84613712,66099.0,66098.0,0.21411743]
[1729879797446,0.87744188,66099.0,66091.0,0.22600232]
[1729879797681,0.2268462,66098.0,66091.0,0.22600232]
[1729879797900,0.05005413,66097.0,66072.0,0.005]
[1729879798106,0.005,66095.0,66068.0,5.239e-05]
[1729879798395,0.22895453,66094.0,66068.0,5.239e-05]
[1729879798620,0.65057918,66091.0,66090.0,0.35297921]
[1729879798847,0.84613712,66091.0,66090.0,0.35297921]
[1729879799082,0.04505413,66091.0,66090.0,0.35297921]
[1729879799318,0.80108299,66091.0,66090.0,0.35297921]
[1729879799766,0.82269088,66091.0,66090.0,0.35297921]
[1729879800220,0.86765008,66091.0,66090.0,0.35297921]
[1729879800452,0.69553838,66091.0,66090.0,0.35297921]
[1729879800685,0.69553838,66091.0,66090.0,0.41773763]
[1729879800915,0.92744219,66091.0,66090.0,0.35297921]
[1729879801145,0.96241114,66091.0,66090.0,0.1566482]
[1729879801379,0.2949592,66091.0,66070.0,0.07529473]
[1729879801590,0.0449592,66090.0,66070.0,0.07529473]
[1729879801852,0.2949592,66090.0,66089.0,0.0301605]
[1729879802310,0.78257101,66090.0,66089.0,0.0007]
[1729879802536,0.63126301,66090.0,66089.0,0.0007]
[1729879802754,0.4807592,66090.0,66089.0,0.0007]
[1729879803016,0.45893784,66090.0,66089.0,0.0007]
[1729879803252,0.57616461,66090.0,66089.0,0.0007]
[1729879803485,0.48048226,66090.0,66089.0,0.0007]
[1729879803697,0.44546301,66090.0,66089.0,0.0007]
[1729879803944,0.51199425,66090.0,66089.0,0.0007]
[1729879804191,0.48047404,66090.0,66089.0,0.0007]
[1729879804428,0.48047404,66090.0,66070.0,0.07529473]
[1729879804429,0.25,66076.0,66070.0,0.07529473]
[1729879804696,0.243261,66067.0,66066.0,0.32276259]
[1729879804951,0.005,66057.0,66020.0,0.005]
[1729879805207,0.40057918,66042.0,66021.0,0.00113946]
[1729879805456,0.40057918,66036.0,66021.0,0.00308091]
[1729879805679,0.0223673,66032.0,66021.0,0.00808091]
[1729879805913,0.03489276,66031.0,66021.0,0.00808091]
[1729879806136,0.05726006,66030.0,66021.0,5.246e-05]
[1729879806393,0.05726006,66029.0,66021.0,5.246e-05]
[1729879806608,0.40057918,66032.0,66023.0,0.1]
[1729879806609,0.26089508,66028.0,66023.0,0.1]
[1729879806822,0.022322,66024.0,66023.0,0.1]
[1729879807048,0.022322,66024.0,66021.0,5.246e-05]
[1729879807049,0.15050381,66024.0,66021.0,5.246e-05]
[1729879807295,0.03489276,66024.0,66021.0,5.246e-05]
[1729879807510,0.03489276,66023.0,66014.0,0.01053375]
[1729879807730,0.03489276,66022.0,66016.0,0.1]
[1729879807973,0.03489276,66022.0,66011.0,0.95206603]
[1729879807974,0.02228171,66027.0,66018.0,0.1]
[1729879808188,0.22600232,66026.0,66020.0,0.105]
[1729879808402,0.22600232,66026.0,66017.0,0.03005038]
[1729879808403,0.01073623,66025.0,66024.0,0.005]
[1729879808691,0.22600232,66037.0,66032.0,0.005]
[1729879808908,0.22600232,66037.0,66036.0,0.105]
[1729879809124,0.22600232,66037.0,66036.0,0.28655419]
[1729879809615,0.22600232,66037.0,66036.0,0.13605038]
[1729879809893,0.02147261,66040.0,66036.0,0.1]
[1729879810115,0.02147261,66043.0,66037.0,0.15050381]
[1729879810337,0.42125862,66053.0,66037.0,0.15050381]
[1729879810338,0.02228171,66047.0,66038.0,0.1]
[1729879810588,0.22600232,66051.0,66040.0,0.1]
[1729879810799,0.23548027,66059.0,66043.0,0.023]
[1729879810800,0.22600232,66050.0,66043.0,0.023]
[1729879811011,0.22600232,66050.0,66045.0,0.1]
[1729879811266,0.005,66049.0,66021.0,0.1887]
[1729879811489,0.02224895,66035.0,66025.0,0.37650613]
[1729879811734,0.22600232,66042.0,66013.0,0.40557918]
[1729879811997,0.02224616,66028.0,66018.0,0.19356677]
[1729879812223,0.02224616,66028.0,66019.0,0.40557918]
[1729879812497,0.22600232,66026.0,66018.0,0.04306296]
[1729879812739,0.02224616,66027.0,66019.0,0.40057918]
[1729879812984,0.25,66036.0,66025.0,0.40057918]
[1729879812985,0.24824848,66026.0,66025.0,0.40057918]
[1729879813236,0.02224616,66029.0,66025.0,0.60114091]
[1729879813732,0.02224616,66029.0,66025.0,0.4506371]
[1729879813952,0.02224616,66030.0,66025.0,0.4506371]
[1729879814163,0.02224616,66028.0,66025.0,0.4506371]
[1729879814376,0.22600232,66033.0,66025.0,0.4506371]
[1729879814603,0.02223612,66028.0,66025.0,0.40057918]
[1729879814829,0.02134668,66035.0,66025.0,0.55108299]
[1729879814830,0.02223612,66026.0,66025.0,0.55108299]
[1729879815079,0.02134668,66039.0,66026.0,0.1]
[1729879815327,0.22600232,66036.0,66029.0,0.005]
[1729879815562,0.22600232,66043.0,66039.0,0.1]
[1729879815808,0.22600232,66043.0,66041.0,0.105]
[1729879816061,0.22600232,66050.0,66038.0,0.40557918]
[1729879816062,0.22600232,66050.0,66045.0,0.005]
[1729879816393,0.00947931,66060.0,66039.0,0.076]
[1729879816394,0.02134668,66060.0,66056.0,0.005]
[1729879816662,0.247349,66070.0,66058.0,0.43357918]
[1729879816870,0.247349,66070.0,66069.0,0.005]
[1729879817125,0.12616327,66070.0,66069.0,0.53357918]
[1729879817387,0.02138767,66083.0,66076.0,0.005]
[1729879817661,0.02138767,66095.0,66081.0,0.005]
[1729879817860,0.22600232,66089.0,66088.0,0.005]
[1729879818079,0.22600232,66096.0,66095.0,0.005]
[1729879818302,0.04281155,66103.0,66096.0,0.005]
[1729879818542,0.22600232,66111.0,66096.0,0.005]
[1729879818543,0.22600232,66097.0,66096.0,0.0133]
[1729879818766,0.50240802,66097.0,66075.0,0.028]
[1729879818998,0.005,66083.0,66082.0,0.22600232]
[1729879819201,0.25,66076.0,66070.0,0.22600232]
[1729879819419,0.0214057,66075.0,66070.0,0.22600232]
[1729879819665,0.0214057,66074.0,66071.0,0.02260023]
[1729879819870,0.0214057,66073.0,66062.0,0.40557918]
[1729879820099,0.2607848,66072.0,66063.0,0.15050381]
[1729879820362,0.25,66058.0,66057.0,0.000819]
[1729879820575,0.04548797,66058.0,66057.0,0.15132281]
[1729879820800,0.03478248,66058.0,66057.0,0.55190199]
[1729879821047,0.03478248,66058.0,66057.0,0.60709219]
[1729879821255,0.03481278,66058.0,66057.0,0.0560092]
[1729879821509,0.03481278,66058.0,66057.0,0.000819]
[1729879821708,0.01070549,66060.0,66058.0,0.005]
[1729879822011,0.25,66076.0,66061.0,0.01]
[1729879822012,0.02229461,66068.0,66061.0,0.01]
[1729879822264,0.22600232,66062.0,66057.0,0.000819]
[1729879822516,0.24829693,66072.0,66057.0,0.000819]
[1729879822517,0.25,66061.0,66057.0,0.000819]
[1729879823202,0.22600232,66058.0,66057.0,0.000819]
[1729879823415,0.25,66054.0,66038.0,0.22600232]
[1729879823656,0.25,66054.0,66040.0,0.15050381]
[1729879823657,0.01070549,66053.0,66040.0,0.15050381]
[1729879823912,0.02234258,66052.0,66041.0,0.03765586]
[1729879824150,0.02234258,66052.0,66031.0,0.23100232]
[1729879824151,0.02234258,66047.0,66031.0,0.005]
[1729879824368,0.27234258,66045.0,66030.0,0.02555038]
[1729879824622,0.01070549,66051.0,66030.0,0.02555038]
[1729879824623,0.01070549,66044.0,66040.0,0.15050381]
[1729879824827,0.02140585,66051.0,66040.0,0.19972357]
[1729879824828,0.02234499,66041.0,66040.0,0.19972357]
[1729879825071,0.02234499,66045.0,66041.0,0.00166986]
[1729879825286,0.02234499,66043.0,66042.0,0.1711484]
[1729879825585,0.02234499,66043.0,66004.0,0.0005]
[1729879825586,0.005,66016.0,66004.0,0.0005]
[1729879825835,0.0797,66030.0,66004.0,0.0005]
[1729879825836,0.02237335,66024.0,66015.0,0.9085334]
[1729879826036,0.02237335,66022.0,66016.0,0.9085334]
[1729879826253,0.02237335,66020.0,66007.0,0.40057918]
[1729879826508,0.02237335,66020.0,66004.0,0.0005]
[1729879826509,0.25,66016.0,66004.0,0.0005]
[1729879826984,0.00333014,66015.0,66004.0,0.0005]
[1729879827206,0.25,66016.0,66004.0,0.0005]
[1729879827427,0.25,66016.0,66011.0,1.95206603]
[1729879827654,0.00333014,66015.0,66011.0,1.95206603]
[1729879828171,0.25,66016.0,66011.0,1.95206603]
[1729879828172,0.40390932,66012.0,66011.0,1.85586589]
[1729879829122,0.40390932,66012.0,66011.0,1.70421253]
[1729879829406,0.40390932,66012.0,66011.0,1.4848855]
[1729879829854,0.40390932,66012.0,66011.0,1.33313682]
[1729879830316,0.40390932,66012.0,66011.0,1.18138815]
[1729879830555,0.40390932,66012.0,66011.0,1.02963947]
[1729879830993,0.40390932,66012.0,66011.0,0.82006972]
[1729879831208,9.40890932,66012.0,66011.0,0.66832104]
[1729879831472,9.62970021,66012.0,66011.0,0.39263718]
[1729879831715,9.62970021,66012.0,66004.0,0.0005]
[1729879831716,0.16983314,66005.0,66004.0,0.0005]
[1729879831898,0.57042132,66001.0,66000.0,4.60851862]
[1729879832209,0.61404695,66001.0,66000.0,4.35506667]
[1729879832418,0.61404695,66001.0,66000.0,4.20331799]
[1729879832419,0.62049353,66001.0,66000.0,4.20331799]
[1729879832655,0.62549353,66001.0,66000.0,4.12521799]
[1729879832865,0.62549353,66001.0,66000.0,3.09216922]
[1729879832866,0.62689924,66001.0,66000.0,3.09216922]
[1729879833083,0.61189924,66001.0,66000.0,3.24267303]
[1729879833333,0.57585971,66001.0,66000.0,2.83646922]
[1729879833778,0.59424505,66001.0,66000.0,2.83646922]
[1729879834032,0.59424505,66001.0,66000.0,2.74228922]
[1729879834033,0.60424505,66001.0,66000.0,2.74228922]
[1729879834234,1.00424505,66001.0,66000.0,2.74228922]
[1729879834923,1.03568882,66001.0,66000.0,2.68746316]
[1729879835125,1.03568882,66001.0,66000.0,2.53564666]
[1729879835344,1.00424505,66001.0,66000.0,2.53564666]
[1729879835584,1.01357293,66001.0,66000.0,2.38275469]
[1729879835806,0.99918226,66001.0,66000.0,2.35904841]
[1729879836048,0.99918226,66001.0,65965.0,0.005]
[1729879836049,0.25,65991.0,65965.0,0.005]
[1729879836255,0.25,65991.0,65959.0,0.002]
[1729879836256,0.40057918,65966.0,65958.0,0.005]
[1729879836470,0.01337271,65965.0,65959.0,0.15050381]
[1729879836695,0.25,65976.0,65959.0,0.15050381]
[1729879836696,0.24060584,65975.0,65960.0,0.01505038]
[1729879836992,0.22723313,65966.0,65960.0,0.01505038]
[1729879837197,0.40057918,65961.0,65960.0,0.01505038]
[1729879837426,0.41395189,65961.0,65960.0,0.01505038]
[1729879837875,0.01337271,65961.0,65934.0,0.000856]
[1729879838099,1.05115836,65964.0,65936.0,0.1]
[1729879838100,0.40057918,65941.0,65936.0,0.1]
[1729879838347,0.65057918,65964.0,65938.0,0.1]
[1729879838348,0.01337271,65940.0,65938.0,0.1]
[1729879838566,0.22723313,65951.0,65940.0,0.1]
[1729879838772,0.15050381,65961.0,65940.0,0.1]
[1729879838773,0.22723313,65950.0,65941.0,0.00303187]
[1729879839018,0.22723313,65949.0,65943.0,0.2701]
[1729879839227,0.22723313,65961.0,65945.0,0.0502]
[1729879839471,0.15411503,65952.0,65945.0,0.0193]
[1729879839703,0.22723313,65951.0,65946.0,0.06912844]
[1729879839910,0.22723313,65961.0,65950.0,0.123]
[1729879840406,0.40057918,65958.0,65952.0,0.023]
[1729879840873,0.40057918,65958.0,65951.0,0.023]
[1729879841106,0.40057918,65958.0,65954.0,0.1]
[1729879841305,0.40057918,65973.0,65957.0,0.023]
[1729879841794,0.22723313,65975.0,65957.0,0.023]
[1729879841795,0.22723313,65975.0,65960.0,0.151606]
[1729879842058,7e-05,65985.0,65969.0,0.326172]
[1729879842302,0.40057918,66010.0,65961.0,0.00303042]
[1729879842303,0.22690972,65988.0,65981.0,0.123]
[1729879842795,0.22690972,65988.0,65985.0,0.023]
[1729879843567,0.40057918,66004.0,65987.0,0.123]
[1729879843813,0.22723313,65990.0,65989.0,0.123]
[1729879844051,0.40057918,66004.0,65989.0,0.27350381]
[1729879844296,0.22723313,65993.0,65991.0,0.123]
[1729879844558,0.001642,66001.0,65993.0,0.123]
[1729879844800,0.22723313,65998.0,65995.0,0.123]
[1729879845042,0.22723313,65998.0,65996.0,0.15050381]
[1729879845296,0.001642,66001.0,65997.0,0.1]
[1729879845507,0.40057918,65997.0,65986.0,0.0123]
[1729879845768,0.40057918,65997.0,65960.0,0.37883913]
[1729879845769,0.40057918,65997.0,65977.0,0.22723313]
[1729879846018,0.22723313,66000.0,65978.0,0.00303022]
[1729879846235,0.22723313,65997.0,65978.0,0.00303022]
[1729879846448,0.22723313,65997.0,65979.0,0.15050381]
[1729879846665,0.22723313,65990.0,65981.0,0.023]
[1729879846887,0.22723313,65997.0,65981.0,0.023]
[1729879846888,0.22723313,65997.0,65983.0,0.1]
[1729879847153,0.22723313,65997.0,65982.0,0.17785419]
[1729879847154,0.22723313,65997.0,65986.0,0.023]
[1729879847360,0.001642,66001.0,65988.0,0.123]
[1729879847361,0.22723313,65996.0,65988.0,0.123]
[1729879847573,0.001642,66001.0,65993.0,0.1]
[1729879847785,0.22723313,66000.0,65998.0,0.15050381]
[1729879847991,0.22723313,66000.0,65999.0,0.123]
[1729879848488,0.40057918,66017.0,65999.0,0.123]
[1729879848489,0.40057918,66017.0,65999.0,0.27350381]
[1729879848695,0.22723313,66004.0,66003.0,0.123]
[1729879848941,0.40057918,66018.0,66003.0,0.27350381]